bitfinex-derivatives/quotes_BNBF0:USTF0_20250221
["timestamp","ask_amount","ask_price","bid_price","bid_amount"]
[1740171795162,0.31065065,643.81,642.68,1.40620362]
[1740171795367,0.31065065,643.81,642.69,0.28574624]
[1740171796367,0.31065065,643.81,642.7,0.28573143]
[1740171796568,0.31065065,643.81,642.69,0.28573143]
[1740171796768,0.31065065,643.81,642.7,0.28573143]
[1740171796968,0.31065065,643.81,642.71,0.28573143]
[1740171797163,0.31065065,643.81,642.68,1.40620362]
[1740171797164,0.31065065,643.81,642.72,0.28573143]
[1740171797363,0.31065065,643.81,642.69,0.28573143]
[1740171797564,1.32965065,643.81,642.7,0.28573143]
[1740171797865,1.32965065,643.81,642.71,0.28573143]
[1740171798069,1.32965065,643.81,642.69,0.28573143]
[1740171798268,1.32965065,643.81,642.7,0.28573143]
[1740171798470,1.32965065,643.81,642.71,0.28573143]
[1740171798671,1.32965065,643.81,642.48,0.28573143]
[1740171798971,1.32965065,643.81,642.49,0.28573143]
[1740171799266,1.32965065,643.81,642.5,0.28573143]
[1740171799570,1.32965065,643.81,642.51,0.28573143]
[1740171799871,1.32965065,643.81,642.52,0.28573143]
[1740171800069,1.32965065,643.81,642.48,0.28573143]
[1740171800369,0.28364501,643.8,642.49,0.28573143]
[1740171800568,0.28364501,643.8,642.22,1.40620362]
[1740171800569,0.28364501,643.8,642.5,0.28573143]
[1740171800770,0.28364501,643.8,642.23,0.28573143]
[1740171800771,1.00571337,643.79,642.23,0.28573143]
[1740171800964,2.13200115,643.78,642.22,1.40620362]
[1740171801168,1.5293947,643.77,642.23,0.28585674]
[1740171801373,1.5293947,643.76,642.24,0.28585674]
[1740171801669,1.5293947,643.76,642.22,1.40620362]
[1740171801670,1.5293947,643.75,642.25,0.28585674]
[1740171801871,2.41561503,643.74,642.26,0.28585674]
[1740171802066,2.41561503,643.73,642.27,0.28585674]
[1740171802369,2.41561503,643.72,642.28,0.28585674]
[1740171802570,2.41561503,643.71,642.23,0.28585674]
[1740171802868,2.41531251,643.7,642.24,0.28585674]
[1740171803169,1.52909218,643.69,642.25,0.28585674]
[1740171803367,1.52909218,643.68,642.23,0.28585674]
[1740171803570,1.52909218,643.67,642.24,0.28585674]
[1740171803870,0.31072788,643.65,642.25,0.28585674]
[1740171804070,0.31072788,643.65,642.23,0.28585674]
[1740171804269,2.53427116,643.64,642.24,0.28585674]
[1740171804465,0.31074236,643.62,642.25,0.28585674]
[1740171804670,0.31074236,643.62,642.26,0.28585674]
[1740171804868,0.31074236,643.62,642.27,0.28585674]
[1740171805064,0.31074236,643.62,642.03,0.28585674]
[1740171805268,0.31074236,643.62,642.04,0.28585674]
[1740171805469,2.25017372,643.61,642.05,0.28585674]
[1740171805672,1.00571337,643.61,642.06,0.28585674]
[1740171805870,1.00571337,643.61,642.07,0.28585674]
[1740171806171,1.00571337,643.6,642.08,0.28585674]
[1740171806375,0.31076167,643.58,642.09,0.28585674]
[1740171806671,0.31076167,643.58,642.1,0.28585674]
[1740171806870,0.31076167,643.58,642.11,0.28585674]
[1740171807072,0.31076167,643.58,642.12,0.28585674]
[1740171807273,0.31076167,643.58,641.93,1.40620362]
[1740171807274,0.31076167,643.58,642.13,0.28585674]
[1740171807473,1.00571337,643.57,642.14,0.28585674]
[1740171807667,0.31077616,643.55,642.15,0.28585674]
[1740171807967,0.31077616,643.55,642.16,0.28585674]
[1740171808169,0.31077616,643.55,642.17,0.28585674]
[1740171808373,0.31077616,643.55,641.9,1.40620362]
[1740171808374,0.31077616,643.55,642.18,0.28585674]
[1740171808574,0.31077616,643.55,642.19,0.28585674]
[1740171808968,0.31077616,643.55,642.2,0.28585674]
[1740171809171,0.31077616,643.55,642.21,0.28585674]
[1740171809373,0.31077616,643.55,641.91,0.28585674]
[1740171809672,0.31077616,643.55,641.92,0.59742204]
[1740171809871,0.31077616,643.55,641.93,0.59741719]
[1740171810067,0.31077616,643.55,641.94,0.59741233]
[1740171810376,0.31077616,643.55,641.95,0.31155074]
[1740171810572,0.31077616,643.55,641.96,0.28590429]
[1740171810768,0.31077616,643.55,641.97,0.31154103]
[1740171810970,0.31077616,643.55,641.98,0.28590429]
[1740171811169,0.31077616,643.55,641.97,0.31154103]
[1740171811170,0.31077616,643.55,641.99,0.59743562]
[1740171811375,0.31077616,643.55,642.0,0.28590429]
[1740171811577,0.31077616,643.55,642.01,0.28590429]
[1740171811778,0.31077616,643.55,642.02,0.28590429]
[1740171811973,0.31077616,643.55,641.99,0.31153133]
[1740171812178,0.31077616,643.55,642.0,0.28581922]
[1740171812472,0.31077616,643.55,642.01,0.28581922]
[1740171812676,0.31077616,643.55,642.02,0.59733599]
[1740171812873,0.31077616,643.55,642.04,1.40620362]
[1740171813074,0.31077616,643.55,642.05,0.59732143]
[1740171813278,0.31077616,643.55,642.04,1.40620362]
[1740171813279,0.31077616,643.55,642.06,0.59731658]
[1740171813482,0.31077616,643.55,642.07,0.59731173]
[1740171813678,0.31077616,643.55,642.04,1.40620362]
[1740171813679,0.31077616,643.55,642.08,0.59730688]
[1740171813881,0.31077616,643.55,642.04,1.40620362]
[1740171813882,0.31077616,643.55,642.09,0.59730203]
[1740171814080,0.31077616,643.55,642.1,0.28581922]
[1740171814379,0.31077616,643.55,642.11,0.28581922]
[1740171814582,0.31077616,643.55,642.12,0.28581922]
[1740171814781,0.31077616,643.55,642.13,0.28581922]
[1740171815078,0.31077616,643.55,642.17,1.40620362]
[1740171815279,0.31077616,643.55,642.18,0.28585513]
[1740171815582,0.31077616,643.55,642.19,0.28585513]
[1740171815774,0.31077616,643.55,642.2,0.28585513]
[1740171815984,0.31077616,643.55,642.21,0.28585513]
[1740171816278,0.31077616,643.55,642.22,0.28585513]
[1740171816484,0.31077616,643.55,642.17,1.40620362]
[1740171816786,0.31077616,643.55,642.18,0.28582754]
[1740171816984,0.31077616,643.55,642.19,0.28582754]
[1740171817277,0.31077616,643.55,642.2,0.28582754]
[1740171817481,0.31077616,643.55,642.21,0.28582754]
[1740171817678,0.31077616,643.55,642.22,0.28582754]
[1740171817881,0.31077616,643.55,642.23,0.28582754]
[1740171818079,0.31077616,643.55,642.24,0.28582754]
[1740171818382,0.31077616,643.55,642.25,0.28582259]
[1740171818584,0.31077616,643.55,642.26,0.28582259]
[1740171818782,0.31077616,643.55,642.27,0.28582259]
[1740171818983,0.31077616,643.55,642.28,0.28582259]
[1740171819285,0.31077616,643.55,642.16,1.40620362]
[1740171819286,0.31077616,643.55,642.29,0.28582259]
[1740171819484,0.31077616,643.55,642.3,0.28582259]
[1740171819684,0.31077616,643.55,642.31,0.28582259]
[1740171819882,0.31077616,643.55,642.27,1.342]
[1740171819883,0.31077616,643.55,642.32,0.28582259]
[1740171820083,0.31077616,643.55,642.33,0.28582259]
[1740171820282,0.31077616,643.55,642.34,0.28582259]
[1740171820480,0.31077616,643.55,642.35,0.28582259]
[1740171820780,0.31077616,643.55,642.36,0.28583827]
[1740171820991,0.31077616,643.55,642.37,0.28583827]
[1740171821284,0.31077616,643.55,642.38,0.28583827]
[1740171821481,0.31077616,643.55,642.39,0.28583827]
[1740171821679,0.31077616,643.55,642.4,0.28583827]
[1740171821984,0.31077616,643.55,642.27,1.342]
[1740171821985,0.31077616,643.55,642.41,0.28583827]
[1740171822185,0.31077616,643.55,642.42,0.28583827]
[1740171822383,0.31077616,643.55,642.43,0.28583827]
[1740171822583,0.31077616,643.55,642.28,0.28583827]
[1740171822784,0.31077616,643.55,642.27,1.342]
[1740171822785,0.31077616,643.55,642.29,0.28583827]
[1740171823086,0.31077616,643.55,642.3,0.28583827]
[1740171823379,0.31077616,643.55,642.31,0.28583827]
[1740171823586,0.31077616,643.55,642.32,0.28583827]
[1740171823785,0.31077616,643.55,642.33,0.28583827]
[1740171824087,0.31077616,643.55,642.34,0.28583827]
[1740171824286,0.31077616,643.55,642.35,0.28583827]
[1740171824580,0.31077616,643.55,642.36,0.28583352]
[1740171824782,0.31077616,643.55,642.37,0.28583352]
[1740171824979,1.039,643.54,642.38,0.28583352]
[1740171825285,1.039,643.54,642.27,1.342]
[1740171825286,0.31078582,643.53,642.39,0.28583352]
[1740171825485,0.31078582,643.53,642.4,0.28583352]
[1740171825786,0.31078582,643.53,642.27,1.342]
[1740171825787,0.31078582,643.53,642.41,0.28583352]
[1740171826085,0.31078582,643.53,642.42,0.28581803]
[1740171826284,0.31078582,643.53,642.43,0.28581803]
[1740171826484,0.31078582,643.53,642.44,0.28581803]
[1740171826680,0.31078582,643.53,642.45,0.28581803]
[1740171826883,0.31078582,643.53,642.46,0.28581803]
[1740171827087,0.31078582,643.53,642.47,0.28581803]
[1740171827390,0.31078582,643.53,642.48,0.28581803]
[1740171827585,0.31078582,643.53,642.34,1.40620362]
[1740171827788,0.31078582,643.53,642.35,0.28582303]
[1740171827982,0.31078582,643.53,642.36,0.28582303]
[1740171828184,0.31078582,643.53,642.37,0.28582303]
[1740171828389,0.31078582,643.53,642.38,0.28582303]
[1740171828588,0.31078582,643.53,642.39,0.28582303]
[1740171828784,0.31078582,643.53,642.4,0.28582303]
[1740171829089,0.31078582,643.53,642.43,1.40620362]
[1740171829282,0.31078582,643.53,642.44,0.28582303]
[1740171829486,0.31078582,643.53,642.45,0.28582303]
[1740171829686,0.31078582,643.53,642.46,0.28582303]
[1740171829989,0.31078582,643.53,642.47,0.28582303]
[1740171830190,0.31078582,643.53,642.48,0.28582303]
[1740171830387,0.31078582,643.53,642.49,0.28582303]
[1740171830587,0.31078582,643.53,642.5,0.28582303]
[1740171830987,0.31078582,643.53,642.51,0.28582303]
[1740171831192,0.31078582,643.53,642.52,0.28582303]
[1740171831386,0.31078582,643.53,642.53,0.28582303]
[1740171831591,0.31078582,643.53,642.54,0.28582303]
[1740171831789,0.31078582,643.53,642.55,0.28582303]
[1740171831993,0.31078582,643.53,642.54,0.28582303]
[1740171832187,0.31078582,643.53,642.55,0.28582303]
[1740171832390,0.31078582,643.53,642.56,0.28582303]
[1740171832590,0.31078582,643.53,642.54,0.28582303]
[1740171834194,0.31078582,643.53,642.62,1.40620362]
[1740171834392,0.31078582,643.53,642.63,0.28582303]
[1740171836598,0.31078582,643.53,642.64,0.28582303]
[1740171836793,0.31078582,643.53,642.65,0.28582303]
[1740171836995,0.31078582,643.53,642.66,0.28582303]
[1740171837194,0.31078582,643.53,642.4,0.28582303]
[1740171837397,0.31078582,643.53,642.39,1.40620362]
[1740171837398,0.31078582,643.53,642.41,0.28582303]
[1740171837598,0.31078582,643.53,642.42,0.28582303]
[1740171837794,0.31078582,643.53,642.43,0.28582303]
[1740171838100,0.31078582,643.53,642.44,0.28582303]
[1740171838294,0.31078582,643.53,642.45,0.28574371]
[1740171838500,0.31078582,643.53,642.47,1.40620362]
[1740171838897,0.31078582,643.53,642.48,0.28574374]
[1740171840501,0.31078582,643.53,642.49,0.2857327]
[1740171840705,0.31078582,643.53,642.5,0.2857327]
[1740171840900,0.31078582,643.53,642.43,0.2857327]
[1740171841100,0.31078582,643.53,642.44,0.2857327]
[1740171841401,0.31078582,643.53,642.42,1.40620362]
[1740171841603,0.31078582,643.53,642.43,0.28569071]
[1740171841802,0.31078582,643.53,642.44,0.28569071]
[1740171842008,0.31078582,643.53,642.45,0.28569071]
[1740171842202,0.31078582,643.53,642.46,0.28569071]
[1740171842403,0.31078582,643.53,642.47,0.28569071]
[1740171842603,0.31078582,643.53,642.48,0.28569071]
[1740171842804,0.31078582,643.53,642.49,0.28569071]
[1740171843003,0.31078582,643.53,642.42,1.40620362]
[1740171843206,0.31078582,643.53,642.58,1.40620362]
[1740171843403,0.31078582,643.53,642.59,0.28563007]
[1740171843705,0.873,643.63,642.6,0.28563007]
[1740171844105,0.873,643.63,642.61,0.28563007]
[1740171844307,0.873,643.63,642.62,0.28563007]
[1740171844503,0.873,643.63,642.63,0.28563007]
[1740171844699,0.873,643.63,642.58,1.40620362]
[1740171844905,0.873,643.63,642.86,1.40620362]
[1740171845209,0.873,643.63,642.87,0.28563897]
[1740171846405,0.873,643.63,642.86,1.40620362]
[1740171846406,0.873,643.63,642.88,0.28566916]
[1740171846606,0.873,643.63,642.87,0.28566916]
[1740171846906,0.873,643.63,642.88,0.28566916]
[1740171847105,0.873,643.63,642.87,0.28566916]
[1740171847305,0.873,643.63,642.88,0.28566916]
[1740171847501,0.873,643.63,642.89,0.28566916]
[1740171847708,0.873,643.63,642.9,0.28566916]
[1740171847903,0.873,643.63,642.62,0.28566916]
[1740171848102,0.873,643.63,642.63,0.28566916]
[1740171848302,0.873,643.63,642.64,0.28566916]
[1740171848609,0.873,643.63,642.65,0.28566916]
[1740171848803,0.873,643.63,642.62,0.28566916]
[1740171849005,0.873,643.63,642.63,0.28566916]
[1740171849306,0.873,643.63,642.64,0.28566916]
[1740171849506,0.873,643.63,642.65,0.28566916]
[1740171849707,0.873,643.63,642.62,1.40620362]
[1740171849708,0.873,643.63,642.66,0.28566916]
[1740171849906,0.873,643.63,642.67,0.28566916]
[1740171850107,0.873,643.63,642.63,0.28566916]
[1740171850408,0.873,643.63,642.64,0.28566916]
[1740171850606,0.873,643.63,642.62,1.40620362]
[1740171850607,0.873,643.63,642.65,0.28566916]
[1740171850807,0.873,643.63,642.63,0.28566916]
[1740171851007,0.873,643.63,642.64,0.28566916]
[1740171851208,0.873,643.63,642.65,0.28566916]
[1740171851408,0.873,643.63,642.62,0.28566916]
[1740171851607,0.873,643.63,642.63,0.28566916]
[1740171851804,0.873,643.63,642.64,0.28566916]
[1740171852108,0.873,643.63,642.65,0.28566916]
[1740171852311,0.873,643.63,642.66,0.28566916]
[1740171852504,0.873,643.63,642.67,0.28566916]
[1740171852710,0.873,643.63,642.68,0.28566916]
[1740171853004,0.873,643.63,642.69,0.28566916]
[1740171853207,0.873,643.63,642.57,0.28566916]
[1740171853510,0.873,643.63,642.58,0.28566916]
[1740171853707,0.873,643.63,642.59,0.28566916]
[1740171853914,0.873,643.63,642.6,0.28566916]
[1740171854209,0.873,643.63,642.61,0.2856331]
[1740171854406,0.873,643.63,642.62,0.2856331]
[1740171854603,0.873,643.63,642.55,0.2856331]
[1740171854805,1.169,643.72,642.56,0.2856331]
[1740171855007,1.169,643.72,642.57,0.2856331]
[1740171855209,1.169,643.72,642.54,1.40620362]
[1740171855210,1.169,643.72,642.58,0.2856331]
[1740171855410,1.169,643.72,642.59,0.2856331]
[1740171855606,1.169,643.72,642.55,1.69183672]
[1740171855807,1.169,643.72,642.56,0.2856331]
[1740171856214,1.169,643.72,642.57,0.2856331]
[1740171856414,1.169,643.72,642.56,0.2856331]
[1740171856607,1.169,643.72,642.55,1.40620362]
[1740171856608,1.169,643.72,642.57,0.2856331]
[1740171856811,1.169,643.72,642.58,0.2856331]
[1740171857106,1.169,643.72,642.59,0.2856331]
[1740171857311,1.169,643.72,642.6,0.2856331]
[1740171857613,1.169,643.72,642.61,0.2856331]
[1740171857810,1.169,643.72,642.62,0.2856331]
[1740171858014,0.838,643.71,642.63,0.2856331]
[1740171858217,0.838,643.71,642.51,0.2856331]
[1740171858409,0.838,643.71,642.52,0.2856331]
[1740171858717,0.838,643.71,642.53,0.2856331]
[1740171858915,0.838,643.71,642.54,0.2856331]
[1740171859114,0.838,643.71,642.55,0.2856331]
[1740171859314,0.838,643.71,642.56,0.2856331]
[1740171859509,0.838,643.71,642.57,0.2856331]
[1740171859712,0.838,643.71,642.58,0.2856331]
[1740171859909,0.838,643.71,642.59,0.2856331]
[1740171860114,0.838,643.71,642.57,0.2856331]
[1740171860309,0.838,643.71,642.56,1.40620362]
[1740171860310,0.838,643.71,642.58,0.2856331]
[1740171860515,0.838,643.71,642.57,0.2856331]
[1740171860815,0.838,643.71,642.58,0.59687839]
[1740171861017,0.838,643.71,642.59,0.59687354]
[1740171861216,0.838,643.71,642.6,0.2856331]
[1740171861916,0.838,643.71,642.61,0.31123076]
[1740171862116,0.838,643.71,642.62,0.2856331]
[1740171862311,0.838,643.71,642.63,0.59685417]
[1740171862513,0.838,643.71,642.64,0.59684933]
[1740171862714,0.838,643.71,642.65,0.2856331]
[1740171862916,0.838,643.71,642.66,0.59683964]
[1740171863115,0.838,643.71,642.67,0.2856331]
[1740171863315,0.838,643.71,642.68,0.59682996]
[1740171863515,0.838,643.71,642.69,0.59676461]
[1740171863712,0.838,643.71,642.7,0.59675976]
[1740171864017,0.838,643.71,642.71,0.28557259]
[1740171864215,0.838,643.71,642.72,0.28557259]
[1740171864415,0.838,643.71,642.43,2.39249922]
[1740171864416,0.838,643.71,642.73,0.59674524]
[1740171864616,0.838,643.71,642.74,0.28557259]
[1740171864914,0.838,643.71,642.75,0.59673556]
[1740171865111,0.838,643.71,642.76,0.59669908]
[1740171865312,0.838,643.71,642.77,0.59669423]
[1740171865511,0.838,643.71,642.78,0.59668939]
[1740171865712,0.838,643.71,642.79,0.59668455]
[1740171866013,0.838,643.71,642.8,0.59667971]
[1740171866218,0.838,643.71,642.81,0.59667487]
[1740171866413,0.838,643.71,642.82,0.59667003]
[1740171866615,0.838,643.71,642.83,0.28555217]
[1740171866816,0.838,643.71,642.84,0.28555217]
[1740171867011,0.838,643.71,642.85,0.28555217]
[1740171867220,0.838,643.71,642.86,1.69175579]
[1740171867416,0.838,643.71,642.87,0.28555217]
[1740171867613,0.838,643.71,642.88,0.59665221]
[1740171867818,0.838,643.71,642.89,0.59664738]
[1740171868014,0.838,643.71,642.9,0.59664254]
[1740171868211,0.838,643.71,642.91,0.5966377]
[1740171868411,0.838,643.71,642.92,0.59663286]
[1740171868616,0.838,643.71,642.93,0.59662802]
[1740171868819,0.838,643.71,642.94,0.59662318]
[1740171869013,0.838,643.71,642.95,0.59661834]
[1740171869217,0.838,643.71,642.96,0.59661351]
[1740171869519,0.838,643.71,642.97,0.59660867]
[1740171869720,0.838,643.71,642.98,0.59642572]
[1740171870020,0.838,643.71,642.99,0.59642088]
[1740171870214,0.838,643.71,643.0,0.59641605]
[1740171870416,0.838,643.71,643.01,0.59641121]
[1740171870620,0.838,643.71,643.02,0.59640637]
[1740171870817,0.838,643.71,643.03,0.59640153]
[1740171871020,0.838,643.71,643.04,0.28537406]
[1740171871315,0.838,643.71,643.05,0.28537406]
[1740171871515,0.838,643.71,643.06,0.28537406]
[1740171871720,0.838,643.71,643.07,0.28537406]
[1740171872021,0.838,643.71,643.08,0.28537406]
[1740171872220,0.838,643.71,643.09,0.28537406]
[1740171872422,0.838,643.71,643.03,0.31102747]
[1740171872423,0.838,643.71,643.1,0.28537406]
[1740171872615,0.838,643.71,643.11,0.28537406]
[1740171872818,0.838,643.71,643.12,0.28537406]
[1740171873019,0.838,643.71,643.04,0.28537406]
[1740171873219,0.838,643.71,643.05,0.59639186]
[1740171873414,0.838,643.71,643.06,0.28537406]
[1740171873619,0.838,643.71,643.07,0.28537406]
[1740171873816,0.838,643.71,643.08,0.28537406]
[1740171874017,0.838,643.71,643.09,0.28537406]
[1740171874221,0.838,643.71,643.1,0.59636768]
[1740171874423,0.838,643.71,643.11,0.28537406]
[1740171874725,0.838,643.71,643.12,0.59635801]
[1740171875022,0.838,643.71,643.13,0.28537406]
[1740171875219,1.169,643.72,643.14,0.28537406]
[1740171875522,1.169,643.72,643.15,0.5963435]
[1740171875723,1.169,643.72,643.16,0.59633867]
[1740171875923,1.169,643.72,643.17,0.59633383]
[1740171876124,1.169,643.72,643.18,0.596329]
[1740171876324,1.169,643.72,643.19,0.59632416]
[1740171876517,1.149,643.77,643.2,0.59631933]
[1740171876717,1.149,643.77,643.21,0.59631449]
[1740171876921,1.149,643.77,642.79,1.40620362]
[1740171876922,1.149,643.77,643.22,0.59630966]
[1740171877118,1.149,643.77,643.23,0.28537406]
[1740171877322,1.52869679,645.08,643.24,0.28537406]
[1740171877523,0.31004867,645.06,643.25,0.28537406]
[1740171877824,0.28318348,645.05,643.26,0.28537406]
[1740171878025,0.31006309,645.03,643.27,0.28537406]
[1740171878219,2.39837157,645.02,643.28,0.28537406]
[1740171878420,0.31007751,645.0,643.29,0.28537406]
[1740171878719,1.16244294,644.99,643.3,0.28537406]
[1740171878920,0.31009194,644.97,643.31,0.28537406]
[1740171879126,1.16244294,644.96,643.32,0.28537406]
[1740171879324,0.31010636,644.94,643.33,0.28537406]
[1740171879525,1.51911211,644.93,643.34,0.28537406]
[1740171879726,0.31012079,644.91,643.35,0.28537406]
[1740171879925,1.51911211,644.9,643.36,0.28537406]
[1740171880125,0.31013521,644.88,643.37,0.28537406]
[1740171880325,0.28318348,644.87,643.38,0.28537406]
[1740171880521,0.31014964,644.85,643.39,0.28537406]
[1740171880720,0.31014964,644.85,643.22,0.3109356]
[1740171880920,0.31014964,644.85,643.23,0.28535249]
[1740171881228,0.31014964,644.85,643.24,0.59627842]
[1740171881425,0.99761058,644.84,643.25,0.59627359]
[1740171881728,0.99761058,644.84,643.26,0.28535249]
[1740171881921,0.99761058,644.83,643.27,0.28535249]
[1740171882122,0.99761058,644.83,643.28,0.28535249]
[1740171882323,0.99761058,644.83,643.29,0.28535249]
[1740171882523,0.99761058,644.82,643.3,0.28535249]
[1740171882720,0.99761058,644.82,643.31,0.28535249]
[1740171882925,0.99761058,644.82,643.32,0.28535249]
[1740171883125,0.99761058,644.82,643.33,0.28535249]
[1740171883320,0.99761058,644.81,643.26,0.28535249]
[1740171883520,2.783824,644.8,643.27,0.28535249]
[1740171883725,1.549,644.8,643.28,0.28535249]
[1740171883928,1.549,644.8,643.29,0.28535249]
[1740171884127,2.23245129,644.79,643.26,0.28535249]
[1740171884326,0.31018812,644.77,643.27,0.28535249]
[1740171884527,0.31018812,644.77,643.28,0.28535249]
[1740171884727,0.99761058,644.76,643.29,0.28535249]
[1740171885029,0.31020256,644.74,643.3,0.28535249]
[1740171885329,1.23495372,644.73,643.31,0.28535249]
[1740171885631,0.31021699,644.71,643.32,0.28535249]
[1740171885827,0.31021699,644.71,643.26,0.28535249]
[1740171886028,0.31021699,644.71,643.27,0.28535249]
[1740171886223,0.31021699,644.71,643.26,0.28535249]
[1740171886424,0.31021699,644.71,643.27,0.28535249]
[1740171886623,0.99761058,644.7,643.28,0.28539665]
[1740171886830,0.31023143,644.68,643.26,0.28539665]
[1740171887022,0.31023143,644.68,643.27,0.28539129]
[1740171887226,0.99761058,644.67,643.28,0.28539129]
[1740171887423,0.31024586,644.65,643.26,0.28539129]
[1740171889730,0.99774045,644.64,643.26,0.28539129]
[1740171889926,0.3102603,644.62,643.26,0.28539129]
[1740171890430,2.23429284,644.61,643.27,0.28545329]
[1740171890728,0.31027474,644.59,643.28,0.28545329]
[1740171890931,0.31027474,644.59,643.29,0.28545329]
[1740171891128,0.99774045,644.58,643.3,0.28545329]
[1740171891431,0.31028918,644.56,643.31,0.28545329]
[1740171891731,0.31028918,644.56,643.26,0.28545329]
[1740171892332,0.99774045,644.55,643.26,0.28545329]
[1740171892527,0.31030363,644.53,643.26,0.28545329]
[1740171898327,0.31030363,644.53,643.25,0.3109211]
[1740171898632,0.31030363,644.53,643.26,0.28545275]
[1740171899227,0.31030363,644.53,643.25,0.3109211]
[1740171899228,0.31030363,644.53,643.27,0.28545275]
[1740171899435,0.31030363,644.53,643.26,0.28545275]
[1740171899636,0.31030363,644.53,643.27,0.28545275]
[1740171899829,0.31030363,644.53,643.25,0.3109211]
[1740171900032,0.31030363,644.53,643.26,0.28542727]
[1740171900629,0.91,644.52,643.26,0.28542727]
[1740171900833,0.31031326,644.51,643.26,0.28542727]
[1740171901935,0.31031326,644.51,643.27,0.28542727]
[1740171902236,0.31031326,644.51,643.28,0.28542727]
[1740171902436,0.31031326,644.51,643.29,0.28542727]
[1740171902736,0.31031326,644.51,643.3,0.28542727]
[1740171902932,0.31031326,644.51,643.31,0.28540224]
[1740171903137,0.31031326,644.51,643.32,0.28540224]
[1740171903336,0.31031326,644.51,643.43,1.40620362]
[1740171903532,0.31031326,644.51,643.44,0.28540224]
[1740171905731,0.31031326,644.51,643.45,0.28540224]
[1740171905934,0.31031326,644.51,643.4,0.28540224]
[1740171906136,0.31031326,644.51,643.39,1.40620362]
[1740171906137,0.31031326,644.51,643.41,0.28540224]
[1740171906334,0.31031326,644.51,643.4,0.28540224]
[1740171906533,1.52446849,644.5,643.41,0.28540224]
[1740171906732,0.31031326,644.51,643.4,0.28540224]
[1740171906938,0.31031326,644.51,643.41,0.28540224]
[1740171907138,1.00191392,644.49,643.42,0.28540224]
[1740171907339,0.31033252,644.47,643.43,0.28540224]
[1740171907534,0.31033252,644.47,643.44,0.28552275]
[1740171907735,1.00191392,644.46,643.45,0.28552275]
[1740171908038,0.31034696,644.44,643.46,0.28552275]
[1740171908234,0.31034696,644.44,643.29,0.28552275]
[1740171908438,0.31034696,644.44,643.3,0.28552275]
[1740171908638,0.31034696,644.44,643.28,1.343]
[1740171908639,0.31034696,644.44,643.29,0.28552275]
[1740171908839,0.31034696,644.44,643.3,0.28552275]
[1740171909035,0.31034696,644.44,643.29,0.28552275]
[1740171909240,0.31034696,644.44,643.3,0.28552425]
[1740171909441,0.31034696,644.44,643.31,0.28552425]
[1740171909740,0.31034696,644.44,643.32,0.28552425]
[1740171909941,0.31034696,644.44,643.29,0.28552425]
[1740171910240,0.31034696,644.44,643.3,0.28552425]
[1740171910442,0.31034696,644.44,643.29,0.28552425]
[1740171910740,0.31034696,644.44,643.28,1.343]
[1740171910936,0.31034696,644.44,643.29,0.28539805]
[1740171913839,0.31034696,644.44,643.28,1.343]
[1740171914042,0.31034696,644.44,643.29,0.28543083]
[1740171914437,1.59334696,644.44,643.29,0.28543083]
[1740171918046,1.59334696,644.44,643.3,0.28543083]
[1740171918348,1.59334696,644.44,643.31,0.28543083]
[1740171918541,1.59334696,644.44,643.32,0.28543083]
[1740171918747,1.59334696,644.44,643.33,0.28543083]
[1740171918945,1.59334696,644.44,643.34,0.28543083]
[1740171919146,1.59334696,644.44,643.35,0.28543083]
[1740171919445,1.59334696,644.44,643.36,0.28543083]
[1740171919646,1.59334696,644.44,643.29,0.28543083]
[1740171919842,1.59334696,644.44,643.3,0.28543083]
[1740171920042,1.59334696,644.44,643.28,1.343]
[1740171920043,1.59334696,644.44,643.29,0.28543083]
[1740171920243,1.59334696,644.44,643.3,0.28543083]
[1740171920444,1.59334696,644.44,643.47,1.40620362]
[1740171920644,1.59334696,644.44,643.48,0.28543083]
[1740171921945,1.59334696,644.44,643.49,0.28540908]
[1740171922146,1.59334696,644.44,643.5,0.28540908]
[1740171922352,1.59334696,644.44,643.48,0.28540908]
[1740171922549,1.59334696,644.44,643.49,0.28540908]
[1740171922757,1.59334696,644.44,643.31,1.40620362]
[1740171922758,1.59334696,644.44,643.5,0.28540908]
[1740171923054,1.59334696,644.44,643.31,1.40620362]
[1740171923055,1.59334696,644.44,643.51,0.28540908]
[1740171923256,1.59334696,644.44,643.52,0.28540908]
[1740171923456,1.59334696,644.44,643.31,1.40620362]
[1740171923657,1.59334696,644.44,643.32,0.2853347]
[1740171923855,1.59334696,644.44,643.33,0.2853347]
[1740171924055,1.59334696,644.44,643.34,0.2853347]
[1740171924258,1.59334696,644.44,643.35,0.2853347]
[1740171924451,1.59334696,644.44,643.36,0.2853347]
[1740171924656,1.59334696,644.44,643.54,1.40620362]